bitfinex/quotes_SOLUSD_20260124
["timestamp","ask_amount","ask_price","bid_price","bid_amount"]
[1769271263989,2.1302318,126.76,126.72,1.08709008]
[1769271266210,104.0,126.77,126.74,1.08709008]
[1769271266395,0.20544551,126.78,126.74,1.08709008]
[1769271268806,0.21877268,126.8,126.74,1.08709008]
[1769271269024,0.21877268,126.82,126.78,1.08709008]
[1769271269514,2.34900448,126.82,126.78,1.08709008]
[1769271270206,0.21877268,126.82,126.78,1.08709008]
[1769271271014,0.21877268,126.82,126.79,1.08709008]
[1769271271893,2.36185459,126.83,126.79,1.08709008]
[1769271272912,0.23162279,126.83,126.79,1.08709008]
[1769271275109,0.24807587,126.82,126.79,1.08709008]
[1769271276318,104.25207414,126.83,126.79,1.08709008]
[1769271284223,104.0,126.83,126.79,1.08709008]
[1769271284409,104.0,126.83,126.8,1.09060728]
[1769271285228,104.28605446,126.83,126.8,1.09060728]
[1769271286747,106.41628626,126.83,126.8,1.09060728]
[1769271287044,104.28605446,126.83,126.8,1.09060728]
[1769271288565,104.0,126.83,126.81,1.09060728]
[1769271288762,0.29660957,126.84,126.81,1.09060728]
[1769271289553,0.30004348,126.86,126.83,1.09060728]
[1769271290653,104.30343378,126.87,126.83,3.22083908]
[1769271291051,104.0,126.87,126.84,1.09060728]
[1769271291255,104.0,126.87,126.84,3.22083908]
[1769271294978,104.0,126.87,126.84,1.09060728]
[1769271296281,104.32269115,126.87,126.84,1.09060728]
[1769271300888,0.3377605,126.86,126.82,1.09060728]
[1769271301470,0.3377605,126.86,126.82,3.22083908]
[1769271301776,0.3377605,126.86,126.82,1.09060728]
[1769271302297,0.3377605,126.86,126.82,3.22083908]
[1769271302471,0.3377605,126.86,126.83,1.09060728]
[1769271303192,106.12966348,126.87,126.81,1.21110565]
[1769271303193,0.34643,126.84,126.81,1.21110565]
[1769271303492,0.34643,126.85,126.81,1.21110565]
[1769271303699,2.47609348,126.85,126.81,1.21110565]
[1769271305894,0.34643,126.85,126.81,1.21110565]
[1769271306195,2.47609348,126.85,126.81,1.21110565]
[1769271307474,0.34643,126.85,126.81,1.21110565]
[1769271308188,2.12966348,126.86,126.82,1.21110565]
[1769271308189,0.36019106,126.86,126.82,1.21110565]
[1769271317511,104.38540906,126.87,126.83,1.19246842]
[1769271318199,0.38776895,126.86,126.83,1.19246842]
[1769271320804,0.38776895,126.86,126.82,3.3221319]
[1769271321286,0.38776895,126.86,126.83,1.19246842]
[1769271331932,104.41814372,126.87,126.83,1.19246842]
[1769271332136,104.41814372,126.87,126.84,1.19246842]
[1769271334045,0.42404107,126.86,126.84,1.19246842]
[1769271334219,0.42404107,126.86,126.83,2.12966348]
[1769271334418,0.42404107,126.86,126.83,3.29856709]
[1769271335142,0.42404107,126.86,126.84,1.16890361]
[1769271335844,104.0,126.87,126.84,1.16890361]
[1769271336030,104.42787554,126.87,126.84,1.16890361]
[1769271337528,104.0,126.87,126.84,1.16890361]
[1769271338030,104.43159528,126.87,126.84,1.16890361]
[1769271338242,104.0,126.87,126.84,1.16890361]
[1769271340745,104.43523716,126.87,126.84,1.16890361]
[1769271344651,104.0,126.87,126.84,1.16890361]
[1769271344949,0.44398611,126.88,126.85,1.16890361]
[1769271346350,0.44567396,126.89,126.85,1.16890361]
[1769271346749,0.44567396,126.89,126.86,1.16890361]
[1769271355981,0.44567396,126.89,126.86,3.29856709]
[1769271356256,0.44567396,126.89,126.86,1.16890361]
[1769271364058,0.46794445,126.88,126.85,1.18994291]
[1769271365467,0.46794445,126.88,126.84,1.18994291]
[1769271365647,0.46984874,126.85,126.82,1.18994291]
[1769271366266,2.1285932,126.86,126.82,1.18994291]
[1769271366560,2.59844194,126.86,126.82,1.18994291]
[1769271369966,0.46984874,126.86,126.82,1.18994291]
[1769271374481,2.59844194,126.86,126.82,1.18994291]
[1769271374764,2.60647245,126.85,126.82,1.18994291]
[1769271376569,2.1285932,126.85,126.82,1.18994291]
[1769271377250,2.60897801,126.85,126.82,1.18994291]
[1769271377566,0.48038481,126.82,126.79,1.28815234]
[1769271377772,2.60897801,126.82,126.79,1.28815234]
[1769271378851,0.48203563,126.8,126.77,1.28815234]
[1769271379259,2.1285932,126.81,126.77,1.28815234]
[1769271379458,2.61062883,126.81,126.77,1.28815234]
[1769271379955,2.1285932,126.81,126.77,1.28815234]
[1769271380473,2.61142952,126.81,126.77,1.28815234]
[1769271380770,2.61223159,126.8,126.77,1.28815234]
[1769271381156,2.1285932,126.79,126.77,1.28815234]
[1769271381560,0.48363839,126.78,126.74,1.28815234]
[1769271381951,2.61223159,126.78,126.74,1.28815234]
[1769271382151,0.48442532,126.77,126.74,1.28815234]
[1769271382551,2.61301852,126.77,126.74,1.28815234]
[1769271383049,0.48442532,126.77,126.74,1.28815234]
[1769271383250,2.61301852,126.77,126.74,1.28815234]
[1769271383547,0.48520313,126.75,126.72,1.28815234]
[1769271383768,2.1285932,126.76,126.72,1.28815234]
[1769271383971,2.61456267,126.76,126.72,1.28815234]
[1769271387474,0.48596947,126.76,126.72,1.28815234]
[1769271389065,2.61456267,126.76,126.72,1.28815234]
[1769271395080,0.48596947,126.76,126.72,1.28815234]
[1769271395379,2.61456267,126.76,126.72,1.28815234]
[1769271396256,111.88769151,126.78,126.71,31.33130784]
[1769271396257,0.49516146,126.74,126.71,31.33130784]
[1769271396461,25.06262344,126.79,126.71,25.89847888]
[1769271396462,2.62375466,126.73,126.71,25.89847888]
[1769271397272,0.49516146,126.73,126.71,25.89847888]
[1769271398263,2.62375466,126.73,126.71,25.89847888]
[1769271400084,2.1285932,126.73,126.71,27.22978672]
[1769271401174,2.62634263,126.74,126.71,27.22978672]
[1769271403169,0.49774943,126.74,126.71,27.22978672]
[1769271404996,106.62941576,126.75,126.72,1.33130784]
[1769271405677,0.50141512,126.74,126.71,27.22978672]
[1769271408082,106.1285932,126.75,126.71,27.22978672]
[1769271408288,106.63117173,126.75,126.72,1.33130784]
[1769271409092,106.63117173,126.75,126.71,25.89847888]
[1769271409093,2.63174215,126.74,126.71,27.22978672]
[1769271422508,2.60561098,126.73,126.71,25.89847888]
[1769271422717,2.60372035,126.72,126.71,25.32845231]
[1769271423013,2.1285932,126.72,126.69,0.2]
[1769271423187,2.1285932,126.71,126.69,0.2]
[1769271423900,2.1285932,126.71,126.69,1.52396159]
[1769271424998,2.1349134,126.71,126.69,1.52396159]
[1769271426490,2.1349134,126.71,126.69,1.18078364]
[1769271426808,2.1349134,126.71,126.69,0.15124763]
[1769271427007,3.30647494,126.71,126.69,0.15124763]
[1769271432715,1.18281221,126.7,126.68,15.42889807]
[1769271432918,3.31952775,126.71,126.68,16.68128887]
[1769271434103,3.32130724,126.69,126.66,1.2523908]
[1769271434310,2.1349134,126.7,126.66,1.2523908]
[1769271434510,3.32130724,126.7,126.66,1.2523908]
[1769271436020,3.32130724,126.7,126.65,0.1100251]
[1769271436021,1.18989524,126.67,126.65,0.1100251]
[1769271436205,1.18989524,126.66,126.65,0.1100251]
[1769271436406,7.89284182,126.7,126.65,0.1100251]
[1769271436407,1.18989524,126.7,126.65,1.3624159]
[1769271436608,3.32480864,126.69,126.65,1.3624159]
[1769271437410,1.19160396,126.68,126.65,1.3624159]
[1769271437610,3.32651736,126.68,126.65,1.3624159]
[1769271441426,3.33320792,126.67,126.65,0.1100251]
[1769271441804,3.33320792,126.67,126.65,1.3624159]
[1769271442728,1.19829452,126.67,126.65,1.3624159]
[1769271442925,3.33641245,126.69,126.65,1.3624159]
[1769271443117,3.33641245,126.7,126.66,1.2523908]
[1769271444017,1.20149905,126.7,126.66,1.2523908]
[1769271444205,107.33800866,126.71,126.67,1.2523908]
[1769271444407,105.20309526,126.71,126.67,1.2523908]
[1769271444625,107.33800866,126.71,126.67,1.2523908]
[1769271445009,2.1349134,126.71,126.67,1.2523908]
[1769271445631,3.33956876,126.72,126.68,1.2523908]
[1769271446230,1.2062175,126.71,126.68,1.2523908]
[1769271449218,3.3411309,126.71,126.68,1.2523908]
[1769271449522,3.34565779,126.7,126.68,1.2523908]
[1769271449920,3.34565779,126.7,126.66,1.2523908]
[1769271450322,1.2122162,126.68,126.65,1.3624159]
[1769271450523,3.3471296,126.69,126.65,1.3624159]
[1769271451734,2.1349134,126.69,126.65,1.3624159]
[1769271452030,3.34883866,126.7,126.66,1.2523908]
[1769271452337,2.1349134,126.69,126.66,1.2523908]
[1769271454316,3.34883866,126.7,126.66,1.2523908]
[1769271455129,1.22071468,126.71,126.67,1.30313273]
[1769271455438,107.35562808,126.72,126.68,1.30313273]
[1769271456748,6.56750278,126.73,126.68,1.30313273]
[1769271457032,1.22341422,126.73,126.7,1.30313273]
[1769271457936,3.3596535,126.75,126.71,1.30313273]
[1769271459345,1.22605404,126.74,126.71,1.30313273]
[1769271460638,3.36226992,126.73,126.7,1.30313273]
[1769271460844,2.1349134,126.72,126.7,1.30313273]
[1769271462424,3.36481687,126.72,126.69,1.30313273]
[1769271466755,2.1349134,126.72,126.69,1.30313273]
[1769271467048,1.23605607,126.73,126.69,1.30313273]
[1769271467233,3.37096947,126.73,126.69,1.30313273]
[1769271467630,1.23605607,126.73,126.69,1.30313273]
[1769271468026,3.37096947,126.73,126.69,1.30313273]
[1769271468238,1.23605607,126.73,126.69,1.30313273]
[1769271468437,8.71624335,126.74,126.7,1.30313273]
[1769271468952,3.37215479,126.74,126.7,1.30313273]
[1769271469255,3.37215479,126.74,126.71,1.30313273]
[1769271469256,1.23724139,126.74,126.71,1.30313273]
[1769271471628,3.37215479,126.74,126.71,1.30313273]
[1769271471836,3.37099944,126.73,126.7,1.30313273]
[1769271473153,1.23608604,126.73,126.7,1.30313273]
[1769271473340,3.37099944,126.73,126.7,1.30313273]
[1769271477260,1.2276047,126.72,126.69,1.30313273]
[1769271477653,3.3625181,126.73,126.69,1.30313273]
[1769271479742,2.1349134,126.73,126.69,1.30313273]
[1769271482435,3.35294109,126.73,126.69,1.30313273]
[1769271483259,1.21802769,126.73,126.69,1.30313273]
[1769271483450,3.35294109,126.73,126.69,1.30313273]
[1769271484668,2.1349134,126.73,126.69,1.30313273]
[1769271484957,2.1349134,126.74,126.7,1.26306608]
[1769271485464,6.55757133,126.75,126.71,1.26306608]
[1769271485759,3.34690333,126.76,126.71,1.26306608]
[1769271485948,3.34690333,126.76,126.72,1.26306608]
[1769271486973,3.34529617,126.76,126.72,1.26306608]
[1769271488062,1.21198993,126.76,126.72,1.26306608]
[1769271488268,3.342391,126.77,126.72,1.26306608]
[1769271488450,3.342391,126.77,126.73,1.26306608]
[1769271489560,8.68503518,126.78,126.74,1.26306608]
[1769271490459,7.4773948,126.78,126.74,1.26306608]
[1769271490654,5.34408856,126.78,126.74,1.26306608]
[1769271490965,1.20344466,126.78,126.74,1.26306608]
[1769271492665,3.33406056,126.79,126.75,1.31193177]
[1769271492867,1.20075432,126.78,126.75,1.31193177]
[1769271493064,3.33406056,126.79,126.75,1.31193177]
[1769271493249,2.13330624,126.79,126.75,1.31193177]
[1769271493445,1.20075432,126.78,126.75,1.31193177]
[1769271495642,13.23084182,126.8,126.75,1.31193177]
[1769271495643,3.33140867,126.79,126.75,1.31193177]
[1769271498367,3.32753135,126.8,126.76,1.31193177]
[1769271500072,1.19422511,126.8,126.76,1.31193177]
[1769271501374,1.19422511,126.8,126.76,3.44523801]
[1769271502374,1.19422511,126.8,126.77,1.31193177]
[1769271504874,3.31899005,126.81,126.77,1.31193177]
[1769271507587,3.31666486,126.8,126.77,1.31193177]
[1769271508585,1.18335862,126.8,126.77,1.31193177]
[1769271512792,1.17566732,126.79,126.76,1.19931056]
[1769271515200,1.17358611,126.78,126.74,62.39931056]
[1769271515374,1.17358611,126.77,126.74,1.19931056]
[1769271515686,2.13330624,126.78,126.74,1.19931056]
[1769271515687,1.17256329,126.78,126.74,1.19931056]
[1769271518096,3.3038741,126.77,126.74,1.19931056]
[1769271519182,3.30288896,126.78,126.74,1.19931056]
[1769271523794,1.16481671,126.77,126.74,1.19931056]
[1769271523999,3.29812295,126.77,126.74,1.19931056]
[1769271526295,2.13330624,126.77,126.74,1.19931056]
[1769271526502,1.16298602,126.78,126.74,1.19931056]
[1769271526503,3.29629226,126.78,126.74,1.19931056]
[1769271527286,1.16209929,126.76,126.73,1.19931056]
[1769271527692,8.63860488,126.77,126.73,1.19931056]
[1769271533509,3.29451632,126.77,126.73,1.19931056]
[1769271535310,1.16121008,126.77,126.73,1.19931056]
[1769271535496,3.29451632,126.77,126.73,1.19931056]
[1769271540213,2.13330624,126.77,126.73,1.19931056]
[1769271547919,3.28457719,126.78,126.73,1.19931056]
[1769271548221,2.13330624,126.78,126.74,1.2372795]
[1769271548608,3.27804838,126.78,126.74,1.2372795]
[1769271549012,3.27747019,126.78,126.74,1.2372795]
[1769271550094,1.14474214,126.78,126.74,1.2372795]
[1769271550300,3.27747019,126.78,126.74,1.2372795]
[1769271552401,1.1414091,126.77,126.74,1.2372795]
[1769271553519,3.27349129,126.78,126.74,1.2372795]
[1769271555441,1.14076324,126.78,126.74,1.2372795]
[1769271558824,3.27349129,126.78,126.74,1.2372795]
[1769271560433,3.26915412,126.81,126.76,1.24028417]
[1769271560729,1.13583049,126.8,126.76,1.24028417]
[1769271561130,3.26855854,126.8,126.76,1.24028417]
[1769271565545,1.13350989,126.79,126.76,1.24028417]
[1769271565840,3.26623794,126.79,126.76,1.24028417]
[1769271566928,1.13350989,126.79,126.76,1.24028417]
[1769271567119,3.26623794,126.79,126.76,1.24028417]
[1769271567320,3.26512624,126.78,126.75,62.44028417]
[1769271567516,3.26512624,126.78,126.75,1.24028417]
[1769271571039,2.13272805,126.77,126.75,1.24028417]
[1769271571735,3.26512624,126.78,126.75,1.24028417]
[1769271578246,1.13239819,126.78,126.75,1.24028417]
[1769271578427,3.26512624,126.78,126.75,1.24028417]
[1769271580241,3.25799229,126.78,126.75,1.24028417]
[1769271581748,1.12526424,126.78,126.75,1.24028417]
[1769271584549,2.13272805,126.79,126.75,1.24028417]
[1769271584550,3.25616294,126.79,126.75,1.24028417]
[1769271585546,1.12299095,126.78,126.75,1.24028417]
[1769271585752,3.255719,126.79,126.75,1.24028417]
[1769271587555,1.12211286,126.78,126.75,1.24028417]
[1769271588675,2.13272805,126.79,126.75,1.24028417]
[1769271588854,1.12125866,126.78,126.75,1.24028417]
[1769271589060,3.25398671,126.79,126.75,1.24028417]
[1769271589559,1.12125866,126.79,126.75,1.24028417]
[1769271590937,3.25398671,126.79,126.75,1.24028417]
[1769271591364,1.12042013,126.78,126.75,1.24028417]
[1769271594464,3.25314818,126.78,126.75,1.24028417]
[1769271596368,1.12042013,126.78,126.75,1.24028417]
[1769271599369,2.13272805,126.79,126.75,1.24028417]
[1769271599748,1.11729926,126.79,126.75,1.24028417]
[1769271600567,1.11729926,126.79,126.76,1.23486147]
[1769271601969,3.25002731,126.79,126.76,1.23486147]
[1769271605555,1.11474998,126.8,126.76,1.23486147]
[1769271606464,1.11474998,126.8,126.77,1.28853752]
[1769271609460,1.11340582,126.82,126.78,1.28853752]
[1769271610176,1.11340582,126.82,126.79,1.28853752]
[1769271612982,3.34280821,126.83,126.79,1.28853752]
[1769271614978,1.11111363,126.82,126.79,1.28853752]
[1769271624491,3.33947109,126.83,126.79,1.28853752]
[1769271626791,3.23891211,126.82,126.79,1.28853752]
[1769271628594,1.10786001,126.82,126.79,1.28853752]
[1769271629178,3.33810324,126.83,126.79,1.28853752]
[1769271629383,1.20705114,126.83,126.8,1.27169315]
[1769271634494,0.1,126.83,126.8,1.27169315]
[1769271635588,1.1052361,126.82,126.79,62.38010629]
[1769271635793,1.1052361,126.82,126.8,1.18010629]
[1769271636577,3.33605586,126.83,126.8,1.18010629]
[1769271637397,1.1047588,126.82,126.79,61.2]
[1769271637605,3.2358109,126.82,126.79,62.38010629]
[1769271638706,3.2358109,126.82,126.79,1.18010629]
[1769271639683,1.1047588,126.82,126.79,1.18010629]
[1769271658116,2.1310521,126.82,126.78,62.38010629]
[1769271658320,1.10026725,126.81,126.78,62.38010629]
[1769271660114,3.23131935,126.81,126.78,62.38010629]
[1769271660621,1.10026725,126.81,126.79,1.18010629]
[1769271663120,3.2302411,126.82,126.79,1.18010629]
[1769271663325,1.099189,126.82,126.79,1.18010629]
[1769271665826,3.2302411,126.82,126.79,1.18010629]
[1769271673107,3.23068281,126.82,126.79,1.18010629]
[1769271677342,2.13149381,126.82,126.76,71.22016393]
[1769271677640,3.22825861,126.81,126.77,1.2761828]
[1769271679718,3.22825861,126.81,126.77,61.2]
[1769271679943,3.22825861,126.81,126.78,1.2761828]
[1769271685742,3.22825861,126.81,126.78,62.4761828]
[1769271691555,1.09485972,126.8,126.78,62.4761828]
[1769271692140,2.13149381,126.8,126.78,62.4761828]
[1769271693650,3.22598749,126.8,126.78,62.4761828]
[1769271694052,3.22586406,126.79,126.76,1.23968984]
[1769271694230,2.13149381,126.77,126.76,1.23968984]
[1769271698356,2.13149381,126.77,126.74,21.9]
[1769271700254,2.13149381,126.77,126.74,83.1]
[1769271700447,2.13149381,126.77,126.75,1.23968984]
[1769271702759,3.35859268,126.77,126.75,1.23968984]
[1769271702957,2.13149381,126.76,126.75,1.23968984]
[1769271703461,3.35859268,126.77,126.75,1.23968984]
[1769271704968,2.13149381,126.76,126.75,1.23968984]
[1769271706063,3.35859268,126.77,126.75,1.23968984]
[1769271712368,3.35859268,126.78,126.75,1.23968984]
[1769271713973,2.13149381,126.77,126.75,1.23968984]
[1769271715376,1.22709887,126.79,126.75,1.23968984]
[1769271715561,3.35859268,126.79,126.76,1.23968984]
[1769271716293,1.22709887,126.79,126.76,1.23968984]
[1769271720072,3.35859268,126.79,126.76,1.23968984]
[1769271720779,3.35859268,126.79,126.76,62.43968984]
[1769271723974,2.13149381,126.79,126.77,1.2200531]
[1769271724279,2.13149381,126.8,126.77,1.2200531]
[1769271724450,3.35503738,126.81,126.77,1.2200531]
[1769271725478,3.35503738,126.8,126.77,1.2200531]
[1769271725860,2.13149381,126.79,126.77,1.2200531]
[1769271726577,2.13149381,126.79,126.77,62.4200531]
[1769271731476,3.38617378,126.79,126.77,61.2]
[1769271731685,3.38617378,126.79,126.77,61.07490755]
[1769271731981,2.13149381,126.78,126.77,59.18639994]
[1769271732480,2.13149381,126.78,126.76,60.39268381]
[1769271732668,3.38617378,126.78,126.76,59.18639994]
[1769271732983,3.38732579,126.78,126.76,60.39268381]
[1769271733982,2.13264582,126.78,126.76,60.39268381]
[1769271734389,3.38732579,126.78,126.76,60.39268381]
[1769271734882,2.13264582,126.78,126.76,60.39268381]
[1769271738171,3.38732579,126.79,126.76,60.39268381]
[1769271740685,1.25467997,126.79,126.76,60.39268381]
[1769271740864,3.38732579,126.79,126.76,60.39268381]
[1769271743866,3.38732579,126.8,126.77,1.20628387]
[1769271744280,3.38732579,126.8,126.77,60.39268381]
[1769271744890,1.25467997,126.79,126.77,60.39268381]
[1769271748795,1.25467997,126.79,126.77,59.18639994]
[1769271749893,3.38732579,126.79,126.77,59.18639994]
[1769271751191,3.38732579,126.79,126.77,60.39268381]
[1769271755495,2.13264582,126.79,126.77,60.39268381]
[1769271757195,1.18808032,126.8,126.77,60.39268381]
[1769271757375,3.32072614,126.8,126.77,60.39268381]
[1769271760501,2.13264582,126.79,126.77,60.39268381]
[1769271760996,3.32072614,126.79,126.77,60.39268381]
[1769271761178,2.13264582,126.78,126.76,1.21578095]
[1769271761383,1.18808032,126.79,126.76,1.21578095]
[1769271761585,3.32072614,126.79,126.76,1.21578095]
[1769271764701,3.32072614,126.79,126.76,62.41578095]
[1769271771308,3.32072614,126.79,126.77,1.21578095]
[1769271773209,2.13264582,126.8,126.77,1.21578095]
[1769271773416,3.32072614,126.8,126.77,1.21578095]
[1769271777311,1.18808032,126.79,126.77,1.21578095]
[1769271778517,3.32072614,126.8,126.77,1.21578095]
[1769271782924,1.18808032,126.8,126.77,1.21578095]
[1769271783099,1.23068539,126.82,126.78,1.25371407]
[1769271783299,3.46333121,126.83,126.79,1.25371407]
[1769271785399,2.13264582,126.82,126.79,1.25371407]
[1769271786018,3.46333121,126.83,126.79,1.25371407]
[1769271788120,3.46333121,126.83,126.79,61.2]
[1769271788311,3.46333121,126.83,126.8,1.25371407]
[1769271793230,1.33068539,126.83,126.8,1.25371407]
[1769271793406,3.46333121,126.83,126.8,1.25371407]
[1769271794933,3.46160295,126.83,126.8,1.25371407]
[1769271799258,1.27458659,126.82,126.8,1.25371407]
[1769271799835,3.50550415,126.83,126.8,1.25371407]
[1769271800414,2.13091756,126.82,126.8,1.25371407]
[1769271800636,3.40550415,126.82,126.8,1.25371407]
[1769271804842,3.40550415,126.82,126.8,0.87600985]
[1769271805140,3.40550415,126.82,126.79,61.2]
[1769271806820,3.40550415,126.82,126.79,62.50071693]
[1769271814354,3.40550415,126.82,126.8,1.23957941]
[1769271817543,3.40550415,126.82,126.8,62.43957941]
[1769271820360,2.13091756,126.82,126.8,62.43957941]
[1769271822963,3.3484953,126.82,126.8,62.43957941]
[1769271825566,2.13091756,126.82,126.8,62.43957941]
[1769271827578,3.3484953,126.82,126.8,62.43957941]
[1769271827774,3.3484953,126.81,126.78,1.23957941]
[1769271831166,1.21757774,126.81,126.78,1.23957941]
[1769271831559,3.3484953,126.81,126.78,1.23957941]
[1769271832065,3.3484953,126.81,126.78,61.12561604]
[1769271832773,1.21757774,126.81,126.78,61.12561604]
[1769271833382,7.98466947,126.83,126.78,61.12561604]
[1769271833383,6.24781054,126.83,126.79,1.23957941]
[1769271833666,5.44408856,126.83,126.79,1.23957941]
[1769271834274,6.25103961,126.83,126.79,1.23957941]
[1769271834472,8.38195717,126.83,126.79,1.23957941]
[1769271835055,8.3851665,126.83,126.79,1.23957941]
[1769271835762,0.81016038,126.82,126.79,1.23957941]
[1769271835965,8.3851665,126.83,126.79,1.23957941]
[1769271838054,8.3851665,126.83,126.8,1.23957941]
[1769271838255,8.3851665,126.83,126.8,1.02722772]
[1769271838872,8.60691158,126.83,126.8,1.02722772]
[1769271840880,1.03893888,126.82,126.8,1.02722772]
[1769271841483,8.61740492,126.83,126.8,1.02722772]
[1769271842861,8.61740492,126.83,126.8,60.91326435]
[1769271850181,8.61740492,126.83,126.81,1.30378807]
[1769271850385,8.61740492,126.83,126.81,0.98897344]
[1769271854187,5.44408856,126.83,126.81,0.98897344]
[1769271865704,5.44408856,126.83,126.8,59.88603663]
[1769271865705,5.44408856,126.84,126.82,1.30378807]
[1769271869900,7.57497108,126.84,126.82,1.30378807]
[1769271870096,8.92823796,126.84,126.82,1.30378807]
[1769271870302,8.92823796,126.84,126.81,1.30378807]
[1769271872406,7.57497108,126.84,126.8,59.88603663]
[1769271872711,3.4115277,126.83,126.8,61.26192233]
[1769271873209,1.28064518,126.83,126.8,61.26192233]
[1769271877414,1.28064518,126.83,126.81,1.3758857]
[1769271879213,1.28064518,126.83,126.81,61.26192233]
[1769271879403,8.85561626,126.84,126.81,61.26192233]
[1769271879992,2.13088252,126.83,126.81,61.26192233]
[1769271881521,3.4115277,126.83,126.81,61.26192233]
[1769271883607,2.13088252,126.82,126.78,62.61018378]
[1769271883810,2.13088252,126.81,126.79,1.41018378]
[1769271889210,2.13088252,126.81,126.79,1.18877078]
[1769271889528,2.13088252,126.81,126.76,71.21945316]
[1769271891628,2.13088252,126.81,126.77,1.3758857]
[1769271893728,2.13088252,126.81,126.78,1.3758857]
[1769271899538,2.13088252,126.81,126.79,1.3758857]
[1769271899840,3.4115277,126.8,126.78,61.2]
[1769271900739,2.13088252,126.8,126.78,61.2]
[1769271901821,2.13088252,126.8,126.78,62.5758857]
[1769271904734,3.54558392,126.8,126.78,62.5758857]
[1769271906428,3.54558392,126.8,126.78,1.27479155]
[1769271906624,2.13088252,126.79,126.75,69.08926226]
[1769271907747,2.13088252,126.79,126.75,71.22014478]
[1769271908346,3.54558392,126.8,126.75,71.22014478]
[1769271908529,3.54558392,126.8,126.76,1.3425044]
[1769271911335,3.54558392,126.8,126.77,1.46435726]
[1769271916847,3.54675887,126.8,126.77,1.46435726]
[1769271917354,3.54675887,126.8,126.77,62.66435726]
[1769271919062,2.13205747,126.79,126.77,62.66435726]
[1769271926142,2.13205747,126.79,126.77,1.46435726]
[1769271929869,2.13205747,126.79,126.77,1.32566657]
[1769271930171,2.13205747,126.79,126.77,1.18697557]
[1769271931766,2.13205747,126.79,126.77,62.38697557]
[1769271933674,3.54675887,126.8,126.77,62.38697557]
[1769271933851,1.4147014,126.8,126.77,62.38697557]
[1769271934053,2.13205747,126.79,126.77,62.38697557]
[1769271953796,3.54675887,126.8,126.77,62.38697557]
[1769271959096,2.13205747,126.79,126.77,62.38697557]
[1769271959796,1.4147014,126.8,126.77,62.38697557]
[1769271960096,2.13205747,126.79,126.77,62.38697557]
[1769271960994,3.54675887,126.8,126.77,62.38697557]
[1769271976934,3.54680211,126.8,126.77,62.38697557]
[1769271979639,3.54680211,126.8,126.77,62.35956966]
[1769271981339,2.13210071,126.79,126.77,62.35956966]
[1769271983849,2.13210071,126.79,126.77,61.78175597]
[1769271988738,3.54680211,126.8,126.77,61.78175597]
[1769271995241,1.4147014,126.8,126.77,61.78175597]
[1769271997946,1.4147014,126.8,126.77,61.48884853]
[1769271999669,1.4147014,126.8,126.77,61.2]
[1769271999970,1.4147014,126.8,126.77,62.83956285]
[1769272000267,1.4147014,126.8,126.78,1.63956285]
[1769272000462,1.4147014,126.8,126.78,61.90302853]
[1769272004675,1.4147014,126.8,126.78,61.2]
[1769272005075,1.4147014,126.8,126.77,62.83956285]
[1769272006691,3.71999788,126.81,126.78,1.63956285]
[1769272006979,2.13210071,126.83,126.79,1.63956285]
[1769272007160,2.13210071,126.83,126.8,1.63956285]
[1769272009776,2.13210071,126.83,126.81,1.63956285]
[1769272009987,3.81999788,126.84,126.81,1.63956285]
[1769272011079,0.1,126.84,126.81,1.63956285]
[1769272015884,2.13210071,126.85,126.8,2.13210071]
[1769272016186,3.71999788,126.85,126.82,1.63956285]
[1769272017404,3.71999788,126.85,126.82,1.42387429]
[1769272017609,3.71999788,126.85,126.82,1.31602926]
[1769272017809,1.58789717,126.85,126.82,1.31602926]
[1769272020325,1.58789717,126.85,126.83,1.52754245]
[1769272020527,0.1,126.86,126.83,1.52754245]
[1769272020681,0.1,126.86,126.84,1.52754245]
[1769272021012,1.68789717,126.86,126.84,1.52754245]
[1769272021677,0.1,126.86,126.84,1.52754245]
[1769272025113,1.86760114,126.86,126.84,1.52754245]
[1769272025316,1.86760114,126.86,126.83,3.66543345]
[1769272025523,1.86760114,126.86,126.83,64.86543345]
[1769272026115,1.86760114,126.86,126.83,62.73333274]
[1769272027017,1.86760114,126.86,126.84,1.53516973]
[1769272027516,0.1,126.86,126.84,1.53516973]
[1769272030511,3.99970185,126.88,126.83,71.21617207]
[1769272030718,3.99970185,126.88,126.84,1.43872614]
[1769272031617,0.1,126.88,126.85,1.43982263]
[1769272034424,1.74827415,126.88,126.85,1.43982263]
[1769272035626,0.1,126.88,126.85,1.43982263]
[1769272036335,1.74827415,126.88,126.85,1.43982263]
[1769272037331,1.74827415,126.88,126.85,62.63982263]
[1769272044731,1.74827415,126.88,126.85,64.76867831]
[1769272045558,1.74827415,126.88,126.86,2.12885568]
[1769272045731,1.74827415,126.88,126.86,63.32885568]
[1769272045938,1.74827415,126.88,126.86,61.2]
[1769272046358,1.74827415,126.88,126.86,64.78359707]
[1769272046654,1.74827415,126.88,126.86,62.65474139]
[1769272049151,1.74827415,126.88,126.86,61.2]
[1769272051451,1.74827415,126.88,126.86,63.32885568]
[1769272053978,1.74827415,126.88,126.86,62.84802762]
[1769272055877,0.1,126.88,126.86,64.31138903]
[1769272057475,1.87469291,126.88,126.86,64.31138903]